bitfinex/quotes_SOLUSD_20240621
["timestamp","ask_amount","ask_price","bid_price","bid_amount"]
[1719000731290,6.5685,133.59,133.56,5.9894]
[1719000731672,6.5685,133.59,133.51,15.38674584]
[1719000731892,6.5685,133.59,133.51,0.40664584]
[1719000731893,5.9898,133.56,133.51,0.40664584]
[1719000732201,5.9892,133.58,133.51,6.39844584]
[1719000732397,5.9896,133.57,133.51,0.40664584]
[1719000732692,5.989,133.58,133.51,0.40664584]
[1719000732912,12.557,133.59,133.51,0.40664584]
[1719000733199,20.0,133.58,133.53,5.9908]
[1719000733503,20.0,133.58,133.54,5.9906]
[1719000733802,20.0,133.58,133.53,5.991]
[1719000734173,20.0,133.58,133.52,5.9914]
[1719000734679,25.9889,133.58,133.52,5.9914]
[1719000734879,20.0,133.58,133.52,5.9913]
[1719000735080,20.0,133.58,133.51,0.40664584]
[1719000735267,20.0,133.58,133.54,5.9904]
[1719000735470,6.5685,133.59,133.52,14.9789]
[1719000735688,21.9575,133.62,133.59,5.9882]
[1719000736198,21.9575,133.62,133.56,14.9743]
[1719000736403,21.9575,133.62,133.59,5.9882]
[1719000736575,21.9575,133.62,133.56,14.9743]
[1719000736774,7.82378055,133.71,133.58,14.9722]
[1719000736775,22.7192,133.66,133.58,14.9722]
[1719000737075,22.7192,133.66,133.6,5.9877]
[1719000737465,22.7192,133.66,133.58,5.9884]
[1719000737669,5.9858,133.65,133.58,5.9886]
[1719000737963,22.7192,133.66,133.55,14.9749]
[1719000738186,5.9868,133.63,133.55,14.9749]
[1719000738383,5.9871,133.62,133.56,5.9896]
[1719000738598,6.1575,133.61,133.55,5.9901]
[1719000739179,20.0,133.6,133.56,5.9897]
[1719000739812,20.17,133.61,133.56,5.9897]
[1719000740385,20.17,133.61,133.57,5.9892]
[1719000740719,0.17,133.61,133.56,5.9897]
[1719000740886,0.17,133.61,133.55,5.99]
[1719000741088,6.1576,133.61,133.55,5.99]
[1719000741286,20.0,133.6,133.55,5.99]
[1719000741817,20.0,133.6,133.51,0.40664584]
[1719000741818,27.5677,133.59,133.51,0.40664584]
[1719000742021,27.7377,133.59,133.53,5.9909]
[1719000742311,25.989,133.58,133.51,0.40664584]
[1719000742679,0.17,133.57,133.51,0.40664584]
[1719000742906,0.17,133.57,133.52,5.9912]
[1719000743294,20.0,133.58,133.51,0.40664584]
[1719000743506,20.0,133.58,133.54,5.9906]
[1719000743705,20.0,133.58,133.53,5.9911]
[1719000743890,25.9889,133.58,133.52,5.9915]
[1719000744414,0.17,133.57,133.52,5.9915]
[1719000745813,20.0,133.58,133.51,0.40664584]
[1719000746013,20.0,133.58,133.55,5.9901]
[1719000746392,20.0,133.58,133.51,15.38574584]
[1719000746393,20.0,133.58,133.56,5.9897]
[1719000746592,21.5789,133.59,133.57,5.9892]
[1719000746822,21.5789,133.59,133.56,5.9896]
[1719000749211,5.9893,133.57,133.51,6.39834584]
[1719000749410,21.5789,133.59,133.51,0.40664584]
[1719000749629,5.9897,133.57,133.51,6.39864584]
[1719000750317,20.0,133.56,133.51,6.39864584]
[1719000750807,20.0,133.56,133.52,5.9915]
[1719000751005,20.0,133.57,133.52,5.9915]
[1719000752424,20.0,133.57,133.52,5.9914]
[1719000752722,5.9904,133.55,133.51,0.40664584]
[1719000753019,20.0,133.54,133.51,0.40664584]
[1719000753919,20.0,133.55,133.51,0.40664584]
[1719000755324,21.5789,133.59,133.51,0.40664584]
[1719000755514,20.0,133.58,133.54,5.9904]
[1719000755899,5.9895,133.57,133.51,6.39854584]
[1719000756094,25.9898,133.56,133.51,0.40664584]
[1719000756322,20.0,133.58,133.51,0.40664584]
[1719000756525,25.9889,133.58,133.52,5.9913]
[1719000756715,5.9895,133.57,133.51,6.39864584]
[1719000757017,25.9898,133.56,133.51,0.40664584]
[1719000757412,20.0,133.56,133.51,6.39844584]
[1719000758434,27.5674,133.59,133.53,5.9908]
[1719000758723,20.17,133.58,133.51,0.40664584]
[1719000758923,20.0,133.58,133.51,0.40664584]
[1719000759094,20.0,133.58,133.53,5.9907]
[1719000759295,20.0,133.58,133.54,5.9906]
[1719000759736,20.0,133.58,133.55,5.9901]
[1719000760110,20.0,133.58,133.52,14.9789]
[1719000760111,20.0,133.58,133.54,5.9905]
[1719000760302,20.0,133.58,133.51,0.40664584]
[1719000760303,20.0,133.58,133.53,5.991]
[1719000760494,20.0,133.58,133.51,15.38654584]
[1719000760895,20.0,133.58,133.53,5.9908]
[1719000761926,20.0,133.58,133.54,5.9906]
[1719000762133,5.9893,133.57,133.51,6.39834584]
[1719000762336,5.9894,133.57,133.51,6.39844584]
[1719000762915,20.0,133.58,133.51,0.40664584]
[1719000763107,20.0,133.58,133.55,5.9899]
[1719000763310,20.0,133.58,133.54,5.9905]
[1719000764934,25.9891,133.58,133.52,5.9915]
[1719000765810,5.9894,133.57,133.51,6.39844584]
[1719000766206,20.0,133.56,133.51,6.39844584]
[1719000766425,20.0,133.56,133.51,0.40664584]
[1719000766828,5.9896,133.57,133.51,6.39844584]
[1719000767033,25.9899,133.56,133.51,0.40664584]
[1719000767218,5.9899,133.56,133.51,0.40664584]
[1719000767418,20.0,133.55,133.51,0.40664584]
[1719000768432,5.9909,133.54,133.51,0.40664584]
[1719000768727,20.0,133.53,133.51,0.40664584]
[1719000769608,28.5781,133.52,133.51,0.40664584]
[1719000769803,42.7565,133.52,133.51,0.40664584]
[1719000771027,42.5865,133.52,133.51,0.40664584]
[1719000773923,20.0,133.52,133.51,0.40664584]
[1719000774121,21.5514,133.56,133.51,0.40664584]
[1719000774324,20.0,133.55,133.51,0.40664584]
[1719000774929,15.5316,133.59,133.52,14.9779]
[1719000775239,20.0,133.58,133.54,5.9904]
[1719000775420,20.0,133.58,133.53,5.991]
[1719000776345,25.989,133.58,133.52,5.9914]
[1719000776553,5.9893,133.57,133.51,6.39844584]
[1719000777146,25.989,133.58,133.52,5.9915]
[1719000778028,5.9898,133.56,133.51,0.40664584]
[1719000778229,20.0,133.58,133.51,0.40664584]
[1719000778230,25.9904,133.55,133.51,0.40664584]
[1719000778452,5.9904,133.55,133.51,0.40664584]
[1719000778745,5.9899,133.56,133.51,0.40664584]
[1719000778945,20.0,133.55,133.51,0.40664584]
[1719000779246,20.0,133.55,133.51,6.39854584]
[1719000779456,20.0,133.56,133.51,6.39854584]
[1719000780050,25.9899,133.56,133.51,0.40664584]
[1719000780355,25.9899,133.56,133.51,6.39864584]
[1719000780520,20.0,133.56,133.51,6.39864584]
[1719000781160,25.9899,133.56,133.51,0.40664584]
[1719000781369,5.9902,133.55,133.51,0.40664584]
[1719000781566,20.0,133.54,133.51,0.40664584]
[1719000781859,20.0,133.56,133.51,0.40664584]
[1719000781860,20.0,133.56,133.51,6.39844584]
[1719000782348,20.0,133.56,133.53,5.9909]
[1719000782523,20.0,133.58,133.53,5.9909]
[1719000783142,20.0,133.58,133.54,5.9907]
[1719000783456,20.0,133.58,133.53,5.9909]
[1719000783636,20.0,133.58,133.54,5.9906]
[1719000783951,6.3793,133.61,133.54,28.31]
[1719000784246,20.0,133.6,133.57,5.9893]
[1719000784551,20.0,133.6,133.58,5.9888]
[1719000784761,20.0,133.62,133.58,5.9888]
[1719000784929,16.2001,133.63,133.58,5.9888]
[1719000785131,22.1869,133.63,133.57,5.9892]
[1719000785427,5.9871,133.62,133.56,5.9896]
[1719000785955,5.9871,133.62,133.57,5.9893]
[1719000786119,16.2001,133.63,133.58,5.9889]
[1719000786319,20.0,133.62,133.54,43.2866]
[1719000786519,12.1565,133.65,133.59,5.9884]
[1719000786742,12.1565,133.65,133.6,5.9879]
[1719000786743,6.1705,133.65,133.6,5.9879]
[1719000787231,15.5521,133.66,133.61,5.9874]
[1719000787435,22.5854,133.69,133.58,6.0235]
[1719000787759,5.9853,133.66,133.6,5.9878]
[1719000788324,20.0,133.65,133.6,5.9878]
[1719000788542,25.9858,133.65,133.59,6.1583]
[1719000788744,25.9858,133.65,133.59,5.9883]
[1719000789251,25.9859,133.65,133.59,5.9881]
[1719000789431,20.0,133.65,133.57,14.9733]
[1719000789625,20.0,133.65,133.6,5.9877]
[1719000789834,25.9853,133.66,133.6,5.9878]
[1719000791357,5.9858,133.65,133.59,5.9883]
[1719000791660,20.0,133.64,133.59,5.9881]
[1719000791856,25.9862,133.64,133.59,5.9881]
[1719000792036,20.0,133.64,133.59,5.9881]
[1719000792234,5.986,133.65,133.59,5.9881]
[1719000792447,25.9862,133.64,133.58,5.9887]
[1719000792840,20.0,133.64,133.59,5.9884]
[1719000793044,22.6901,133.63,133.57,14.973]
[1719000793235,20.0,133.64,133.6,5.9878]
[1719000793443,20.0,133.65,133.59,14.971]
[1719000793767,20.0,133.66,133.59,14.971]
[1719000794148,20.0,133.66,133.61,5.9873]
[1719000794672,20.0,133.66,133.62,5.9871]
[1719000795529,20.0,133.66,133.61,5.9873]
[1719000795729,5.9858,133.65,133.6,5.9879]
[1719000795966,20.0,133.64,133.59,5.9882]
[1719000796135,20.0,133.64,133.56,6.2556]
[1719000796460,20.0,133.64,133.54,16.2289]
[1719000796641,5.9878,133.61,133.55,5.9901]
[1719000796843,20.0,133.66,133.51,0.40664584]
[1719000796844,26.3663,133.6,133.51,0.40664584]
[1719000797048,5.9904,133.55,133.51,0.40664584]
[1719000797864,20.17,133.54,133.51,0.40664584]
[1719000798561,20.0,133.53,133.51,0.40664584]
[1719000799277,20.17,133.54,133.51,0.40664584]
[1719000799948,26.1608,133.54,133.51,0.40664584]
[1719000800346,20.0,133.54,133.51,0.40664584]
[1719000801467,20.0,133.54,133.51,6.39854584]
[1719000801677,25.9893,133.58,133.51,6.39854584]
[1719000801843,20.0,133.58,133.51,0.40664584]
[1719000802165,5.9892,133.58,133.51,6.39854584]
[1719000802336,25.9895,133.57,133.51,6.39854584]
[1719000802544,20.0,133.57,133.52,5.9915]
[1719000803151,20.0,133.57,133.51,0.40664584]
[1719000803362,5.9901,133.56,133.51,0.40664584]
[1719000803744,5.9895,133.57,133.51,6.39864584]
[1719000803940,20.0,133.56,133.51,6.39864584]
[1719000804146,25.9898,133.56,133.51,0.40664584]
[1719000804449,20.0,133.56,133.51,6.39864584]
[1719000805275,20.0,133.56,133.51,6.39844584]
[1719000805464,25.9894,133.57,133.51,6.39844584]
[1719000806176,5.9914,133.53,133.51,0.40664584]
[1719000806472,20.0,133.52,133.51,0.40664584]
[1719000806849,20.17,133.52,133.51,0.40664584]
[1719000807173,26.1616,133.52,133.51,0.40664584]
[1719000807350,20.17,133.52,133.51,0.40664584]
[1719000808063,20.0,133.52,133.51,0.40664584]
[1719000809657,25.9916,133.52,133.51,0.40664584]
[1719000809859,20.0,133.52,133.51,0.40664584]
[1719000810555,20.0,133.52,133.45,5.9946]
[1719000810556,6.5072005,133.52,133.45,5.9946]
[1719000810867,5.9927,133.5,133.44,5.995]
[1719000811671,6.1622,133.51,133.45,5.9946]
[1719000812752,20.0,133.5,133.45,5.9946]
[1719000812956,25.9927,133.5,133.44,5.9951]
[1719000813155,5.9929,133.49,133.44,5.9951]
[1719000813354,5.9929,133.49,133.43,5.9954]
[1719000813757,25.9926,133.5,133.44,5.9951]
[1719000814057,20.0,133.5,133.46,5.9942]
[1719000814572,20.17,133.51,133.46,5.9942]
[1719000814782,20.17,133.51,133.48,5.9933]
[1719000814783,20.0,133.51,133.48,5.9933]
[1719000815071,25.9916,133.52,133.47,5.9937]
[1719000815279,25.9916,133.52,133.44,14.987]
[1719000815280,25.9916,133.52,133.46,5.9941]
[1719000815973,15.156,133.51,133.4,15.8549874]
[1719000816167,5.9934,133.48,133.42,5.9959]
[1719000816344,20.0,133.47,133.42,5.9959]
[1719000816854,20.0,133.47,133.43,5.9956]
[1719000817080,20.0,133.48,133.43,5.9956]
[1719000818051,20.0,133.48,133.44,5.9951]
[1719000818381,20.0,133.48,133.43,5.9954]
[1719000819244,20.0,133.48,133.44,5.9951]
[1719000819449,20.0,133.49,133.41,14.9904]
[1719000819649,20.0,133.49,133.42,0.17]
[1719000820365,20.0,133.49,133.44,5.995]
[1719000820677,20.0,133.49,133.44,5.9949]
[1719000821089,25.9931,133.49,133.43,5.9955]
[1719000821274,20.0,133.49,133.43,5.9955]
[1719000821465,20.0,133.5,133.43,5.9955]
[1719000821671,5.993,133.49,133.43,5.9955]
[1719000821868,20.0,133.48,133.43,5.9955]
[1719000822069,5.9943,133.46,133.4,0.8634874]
[1719000822269,25.9947,133.45,133.4,0.8634874]
[1719000822466,5.9947,133.45,133.4,0.8634874]
[1719000822871,20.0,133.44,133.4,0.8634874]
[1719000823167,5.9957,133.43,133.4,0.8634874]
[1719000823583,26.1652,133.44,133.4,0.8634874]
[1719000823754,20.0,133.44,133.4,0.8634874]
[1719000823960,25.9952,133.44,133.4,0.8634874]
[1719000824570,20.0,133.44,133.4,0.8634874]
[1719000825289,5.9961,133.42,133.4,0.8634874]
[1719000825860,0.17,133.41,133.4,0.8634874]
[1719000827368,6.1665,133.41,133.4,0.8634874]
[1719000827567,26.1665,133.41,133.4,0.8634874]
[1719000827762,20.17,133.41,133.4,0.8634874]
[1719000829189,15.1654,133.45,133.4,0.8634874]
[1719000829485,20.0,133.44,133.4,0.8634874]
[1719000829659,20.0,133.44,133.4,6.8602874]
[1719000829862,20.0,133.44,133.4,0.8634874]
[1719000830062,6.2335,133.47,133.42,5.9959]
[1719000830490,6.2335,133.47,133.44,5.9951]
[1719000830695,21.3242,133.49,133.43,5.9952]
[1719000830897,20.0,133.48,133.44,5.9951]
[1719000831192,5.9934,133.48,133.42,5.9959]
[1719000831398,21.3243,133.49,133.43,5.9955]
[1719000831695,15.3312,133.49,133.44,5.9951]
[1719000832493,20.0,133.48,133.45,5.9947]
[1719000832788,20.0,133.48,133.4,17.4069874]
[1719000832959,5.9938,133.47,133.41,5.9963]
[1719000833161,20.0,133.46,133.41,5.9963]
[1719000833792,20.0,133.46,133.42,5.996]
[1719000833972,25.9938,133.47,133.41,5.9964]
[1719000834172,0.17,133.46,133.41,5.9964]
[1719000834379,6.1644,133.46,133.4,6.8602874]
[1719000834671,20.0,133.45,133.4,6.8602874]
[1719000835072,20.0,133.45,133.41,5.9965]
[1719000835276,20.17,133.46,133.41,5.9965]
[1719000835478,20.17,133.46,133.42,5.996]
[1719000835686,0.17,133.46,133.42,5.996]
[1719000836101,20.0,133.47,133.43,5.9954]
[1719000836593,20.0,133.48,133.43,5.9954]
[1719000837294,20.0,133.48,133.44,5.9947]
[1719000838605,20.0,133.48,133.45,5.9945]
[1719000839587,20.0,133.49,133.45,5.9945]
[1719000839909,25.993,133.49,133.43,5.9954]
[1719000840984,5.9935,133.48,133.42,5.9959]
[1719000841176,20.0,133.47,133.4,0.8634874]
[1719000841376,5.9939,133.47,133.41,5.9962]
[1719000841587,20.0,133.46,133.42,5.996]
[1719000841795,5.9938,133.47,133.41,5.9963]
[1719000841967,20.0,133.46,133.41,5.9963]
[1719000842308,5.9948,133.45,133.4,0.8634874]
[1719000842473,20.0,133.44,133.4,0.8634874]
[1719000842867,20.0,133.44,133.41,5.9962]
[1719000843071,20.0,133.45,133.41,5.9962]
[1719000843596,20.0,133.45,133.42,5.996]
[1719000844214,20.0,133.45,133.4,15.8558874]
[1719000844419,20.0,133.49,133.41,0.34]
[1719000844595,20.0,133.49,133.41,15.3304]
[1719000844913,20.0,133.49,133.43,5.9952]
[1719000845119,20.0,133.49,133.41,15.3304]
[1719000845633,25.993,133.49,133.43,5.9952]
[1719000846124,25.993,133.49,133.4,0.8634874]
[1719000846125,20.0,133.49,133.4,0.8634874]
[1719000846300,5.9941,133.47,133.41,5.9964]
[1719000846619,5.9935,133.48,133.42,5.996]
[1719000846802,20.17,133.47,133.42,5.996]
[1719000847003,20.0,133.47,133.43,5.9955]
[1719000847348,20.0,133.47,133.4,0.8634874]
[1719000847349,25.994,133.47,133.41,5.9963]
[1719000847524,26.1635,133.48,133.42,5.9959]
[1719000847813,26.1635,133.48,133.4,0.8634874]
[1719000847814,5.9954,133.44,133.4,0.8634874]
[1719000848026,0.17,133.47,133.4,0.8634874]
[1719000848027,15.1557,133.47,133.4,0.8634874]
[1719000848323,34.9867,133.46,133.4,0.8634874]
[1719000848497,5.9954,133.44,133.4,0.8634874]
[1719000849002,25.9946,133.46,133.4,6.8603874]
[1719000849316,6.1648,133.45,133.4,0.8634874]
[1719000849526,0.17,133.45,133.4,6.8603874]
[1719000849820,0.17,133.45,133.41,5.9965]
[1719000850412,0.17,133.45,133.4,0.8634874]
[1719000850720,25.9936,133.48,133.42,5.996]
[1719000850898,20.0,133.48,133.43,5.9953]
[1719000852313,25.9934,133.48,133.42,5.9959]
[1719000853508,20.0,133.48,133.44,5.995]
[1719000853709,20.0,133.49,133.41,14.9902]
[1719000853940,5.9936,133.48,133.42,5.9957]
[1719000854242,20.0,133.47,133.43,5.9953]
[1719000854531,20.0,133.49,133.4,0.8634874]
[1719000854718,5.9948,133.45,133.4,0.8634874]
[1719000854918,20.0,133.44,133.4,0.8634874]
[1719000856014,25.9948,133.45,133.4,6.8603874]
[1719000856224,25.9948,133.45,133.4,0.8634874]
[1719000856517,20.0,133.45,133.4,6.8603874]
[1719000856839,25.9948,133.45,133.4,0.8634874]
[1719000857008,5.9952,133.44,133.4,0.8634874]
[1719000857345,20.0,133.43,133.4,0.8634874]
[1719000857723,0.17,133.46,133.4,0.8634874]
[1719000858036,5.9948,133.45,133.4,0.8634874]
[1719000858245,20.0,133.44,133.4,0.8634874]
[1719000861438,20.0,133.44,133.4,6.8602874]
[1719000861642,21.396,133.5,133.41,15.1612]
[1719000861859,20.0,133.49,133.42,6.7088]
[1719000862050,20.0,133.52,133.47,5.9936]
[1719000862390,20.0,133.52,133.48,5.9933]
[1719000862542,20.0,133.52,133.46,14.9855]
[1719000862710,5.9915,133.53,133.47,5.9937]
[1719000862917,25.9917,133.52,133.46,5.9942]
[1719000863435,20.0,133.52,133.47,5.9937]
[1719000864455,20.0,133.52,133.48,5.9933]
[1719000864660,20.0,133.53,133.48,5.9933]
[1719000865326,20.0,133.53,133.43,0.17]
[1719000865327,20.0,133.53,133.46,14.9855]
[1719000865527,20.0,133.56,133.46,14.9855]
[1719000865732,5.9907,133.54,133.48,5.9931]
[1719000865945,20.0,133.53,133.48,5.9931]
[1719000866158,20.0,133.53,133.46,14.9855]
[1719000866159,20.0,133.53,133.49,5.9928]
[1719000866351,20.0,133.53,133.48,5.9932]
[1719000866729,20.0,133.53,133.5,5.9921]
[1719000866935,260.4,133.64,133.46,15.0555]
[1719000867135,22.1931,133.6,133.54,5.9906]
[1719000867450,20.0,133.59,133.54,5.9906]
[1719000867645,20.0,133.59,133.55,5.99]
[1719000867847,20.0,133.59,133.56,5.9897]
[1719000868054,20.0,133.6,133.56,5.9897]
[1719000868249,20.0,133.6,133.52,30.2633]
[1719000868456,20.0,133.63,133.53,0.34]
[1719000868964,282.3158,133.64,133.53,0.17]
[1719000869147,5.9878,133.61,133.55,5.99]
[1719000869329,282.3158,133.64,133.53,15.1468]
[1719000869732,5.9872,133.62,133.56,5.9894]
[1719000869970,5.9868,133.63,133.57,5.9893]
[1719000870170,20.0,133.62,133.57,5.9893]
[1719000870335,5.9878,133.61,133.55,5.9901]
[1719000870678,25.9882,133.6,133.54,5.9906]
[1719000870960,20.0,133.59,133.55,5.9902]
[1719000871150,5.9877,133.61,133.55,5.9902]
[1719000871340,20.0,133.6,133.55,5.9902]
[1719000871939,20.0,133.6,133.57,5.9893]
[1719000872134,20.0,133.62,133.57,5.9893]
[1719000872355,20.0,133.62,133.54,14.9765]
[1719000872563,5.9875,133.62,133.56,5.9896]
[1719000872755,20.0,133.61,133.56,5.9896]
[1719000873330,25.9875,133.61,133.55,5.99]
[1719000873848,25.9875,133.61,133.58,5.9885]
[1719000873849,20.0,133.61,133.58,5.9885]
[1719000874163,20.0,133.63,133.54,14.9758]
[1719000874369,20.0,133.63,133.58,5.9888]
[1719000874532,20.0,133.63,133.6,5.9878]
[1719000874738,20.0,133.65,133.6,5.9878]
[1719000875258,25.9858,133.65,133.59,5.9883]
[1719000875440,25.9858,133.65,133.58,5.9887]
[1719000875441,5.9865,133.64,133.58,5.9887]
[1719000875764,20.0,133.63,133.59,5.9884]
[1719000875965,25.9858,133.65,133.56,14.9735]
[1719000876166,20.0,133.65,133.57,0.17]
[1719000876371,5.9863,133.64,133.58,5.9887]
[1719000876670,20.0,133.63,133.58,5.9887]
[1719000876875,20.0,133.63,133.53,29.9544]
[1719000877164,20.0,133.63,133.58,5.9885]
[1719000877391,20.0,133.63,133.54,0.34]
[1719000877392,20.0,133.63,133.59,5.9882]
[1719000877570,0.17,133.66,133.55,14.9746]
[1719000877735,6.1555,133.66,133.6,5.9879]
[1719000877932,20.0,133.65,133.6,5.9879]
[1719000878132,20.0,133.65,133.56,0.34]
[1719000878357,20.0,133.67,133.56,0.34]
[1719000878564,25.9849,133.67,133.61,5.9873]
[1719000879339,5.9853,133.66,133.6,5.9879]
[1719000879546,20.0,133.65,133.6,5.9879]
[1719000879773,20.0,133.65,133.58,15.6069]
[1719000880070,22.5314,133.68,133.63,5.9866]
[1719000880364,20.0,133.67,133.63,5.9866]
[1719000880967,25.985,133.67,133.59,15.3102]
[1719000881191,20.0,133.67,133.59,0.17]
[1719000881344,5.9854,133.66,133.6,5.9876]
[1719000881663,20.0,133.67,133.58,21.7861]
[1719000881664,20.0,133.65,133.61,5.9875]
[1719000881875,5.9854,133.66,133.6,5.9878]
[1719000882056,20.0,133.65,133.6,5.9878]
[1719000883555,20.0,133.65,133.61,5.9873]
[1719000883746,20.0,133.66,133.61,5.9873]
[1719000883947,20.0,133.66,133.58,21.7861]
[1719000884175,20.0,133.67,133.63,5.9865]
[1719000884559,20.0,133.67,133.62,5.9869]
[1719000884971,25.9849,133.67,133.62,5.9869]
[1719000885375,20.0,133.67,133.62,5.9869]
[1719000886074,20.0,133.67,133.6,14.9699]
[1719000886075,5.9856,133.66,133.6,5.9876]
[1719000886384,25.9858,133.65,133.59,5.9883]
[1719000886553,5.9858,133.65,133.59,5.9883]
[1719000886748,5.9858,133.65,133.6,5.9879]
[1719000886943,20.0,133.64,133.59,5.9883]
[1719000887139,5.9861,133.65,133.59,5.9883]
[1719000887372,20.0,133.64,133.59,5.9883]
[1719000887668,25.9862,133.64,133.58,5.9887]
[1719000887867,5.9867,133.63,133.58,5.9887]
[1719000888074,20.0,133.62,133.58,5.9887]
[1719000888572,20.0,133.62,133.57,5.9891]
[1719000888785,25.9872,133.62,133.57,5.9891]
[1719000888989,5.9877,133.61,133.55,5.9899]
[1719000889152,20.0,133.6,133.55,5.99]
[1719000889353,20.0,133.6,133.52,14.9781]
[1719000889576,20.0,133.6,133.56,5.9897]
[1719000889772,20.0,133.6,133.52,14.9781]
[1719000889773,20.0,133.6,133.55,5.9901]
[1719000889980,25.9876,133.61,133.55,5.9901]
[1719000892088,5.9881,133.6,133.54,5.9905]
[1719000892462,5.9891,133.58,133.52,5.9914]
[1719000892665,5.9894,133.57,133.51,5.9918]
[1719000892866,20.0,133.56,133.51,5.9918]
[1719000895182,42.4574,133.56,133.47,16.4684]
[1719000895493,48.4473,133.56,133.5,5.9921]
[1719000895668,5.9905,133.55,133.49,5.9929]
[1719000895869,48.4474,133.56,133.5,5.9924]
[1719000896061,5.9903,133.55,133.49,5.9928]
[1719000896268,20.0,133.54,133.47,16.4684]
[1719000896487,42.4574,133.56,133.47,16.4684]
[1719000896488,42.4574,133.56,133.48,14.9833]
[1719000896682,48.4472,133.56,133.5,5.9923]
[1719000896987,48.4473,133.56,133.5,5.9923]
[1719000897286,5.9907,133.54,133.46,28.29]
[1719000897489,20.17,133.53,133.49,5.9928]
[1719000897791,20.17,133.53,133.5,5.9922]
[1719000897792,20.0,133.53,133.5,5.9922]
[1719000897961,20.0,133.53,133.49,5.9927]
[1719000898158,20.17,133.54,133.45,21.1977]
[1719000898394,20.17,133.54,133.46,14.9847]
[1719000898395,20.0,133.53,133.46,14.9847]
[1719000898593,0.17,133.54,133.49,5.9927]
[1719000899084,5.9911,133.53,133.48,5.9932]
[1719000899262,20.0,133.52,133.48,5.9932]
[1719000900798,20.0,133.53,133.48,5.9932]
[1719000901176,20.0,133.53,133.49,5.9928]
[1719000901571,20.17,133.54,133.49,5.9928]
[1719000902297,20.17,133.54,133.5,5.9922]
[1719000902491,0.17,133.54,133.5,5.9922]
[1719000902789,0.17,133.54,133.49,5.9927]
[1719000902971,6.1609,133.54,133.48,5.9931]
[1719000903171,20.0,133.53,133.48,5.9931]
[1719000903367,20.0,133.53,133.49,5.9928]
[1719000903573,20.0,133.53,133.48,5.9932]
[1719000906104,22.4574,133.56,133.44,52.4449]
[1719000906395,22.4574,133.56,133.53,5.991]
[1719000906684,22.4574,133.56,133.49,14.9814]
[1719000906891,16.1724,133.56,133.5,14.9803]
[1719000907072,16.1724,133.56,133.53,5.991]
[1719000907783,27.0549365,133.58,133.5,14.9803]
[1719000907784,27.0549365,133.58,133.54,5.9905]
[1719000908093,20.0,133.57,133.53,5.991]
[1719000908795,20.0,133.57,133.54,5.9904]
[1719000909294,20.0,133.57,133.54,5.9906]
[1719000909668,20.0,133.57,133.53,5.9909]
[1719000910282,20.0,133.57,133.54,5.9906]
[1719000911589,20.4805365,133.58,133.52,14.9781]
[1719000911784,20.4805365,133.58,133.53,15.1469]
[1719000911989,20.4805365,133.58,133.57,5.9893]
[1719000912900,20.4805365,133.58,133.51,43.4401]
[1719000913098,20.4805365,133.58,133.54,5.9904]
[1719000913281,20.4805365,133.58,133.54,5.9902]